bitfinex-derivatives/quotes_ETHF0:USTF0_20250708
["timestamp","ask_amount","ask_price","bid_price","bid_amount"]
[1751940511249,0.79091,2528.6,2528.5,0.6588]
[1751940511456,1.49781,2528.6,2528.5,1.3361]
[1751940511654,1.49781,2528.6,2528.5,2.6666]
[1751940511860,2.50321,2528.6,2528.5,3.45754]
[1751940512062,3.14991,2528.6,2528.5,3.45754]
[1751940513160,0.7069,2528.6,2528.5,3.45754]
[1751940513356,8.373,2529.2,2528.8,0.79083]
[1751940513559,0.79082,2529.0,2528.9,4.20705069]
[1751940513757,2.50312,2529.0,2528.9,4.20705069]
[1751940513950,2.50312,2529.0,2528.9,3.54125069]
[1751940514153,1.7123,2529.0,2528.7,2.19895069]
[1751940514357,1.49769,2529.0,2528.9,2.19895069]
[1751940514961,2.50309,2529.0,2528.9,2.19895069]
[1751940515961,0.79082,2528.9,2528.8,0.6658]
[1751940516264,0.79094,2528.6,2528.5,2.98988069]
[1751940516464,1.49784,2528.6,2528.5,2.98988069]
[1751940516655,1.49784,2528.6,2528.5,4.96238069]
[1751940516861,1.49784,2528.6,2528.5,4.28508069]
[1751940517062,1.49784,2528.6,2528.5,4.96238069]
[1751940517262,1.7123,2528.6,2528.2,2.19895069]
[1751940517461,0.79101,2528.3,2528.2,4.18445069]
[1751940517657,1.7964,2528.4,2528.3,0.791]
[1751940517964,0.7069,2528.3,2528.2,2.77652]
[1751940518363,2.50331,2528.3,2528.2,2.77652]
[1751940518564,0.79104,2528.2,2528.1,2.99000069]
[1751940518764,1.49794,2528.2,2528.1,2.99000069]
[1751940518970,2.50334,2528.2,2528.1,2.99000069]
[1751940519267,0.7911,2528.0,2527.9,1.33]
[1751940519468,2.5034,2528.0,2527.9,2.0158]
[1751940519670,2.50342,2528.0,2527.9,0.79113]
[1751940520267,0.79114,2527.9,2527.8,0.79115]
[1751940520468,1.49804,2527.9,2527.8,1.46845]
[1751940520669,1.49803,2527.9,2527.8,1.46845]
[1751940520871,2.50343,2527.9,2527.8,0.6773]
[1751940521070,2.50343,2527.9,2527.8,1.46846]
[1751940521574,1.7123,2527.9,2527.8,1.46846]
[1751940521961,0.7069,2527.9,2527.8,2.0796]
[1751940522167,1.49803,2527.9,2527.8,2.0796]
[1751940522672,2.50343,2527.9,2527.8,2.0796]
[1751940523370,2.50343,2527.9,2527.8,2.87076]
[1751940523769,1.7123,2527.9,2527.8,2.87076]
[1751940523969,0.7069,2527.9,2527.8,2.87076]
[1751940524366,1.49803,2527.9,2527.8,2.87076]
[1751940525169,0.7069,2527.9,2527.8,2.87076]
[1751940526268,1.689,2528.1,2527.8,2.0796]
[1751940526475,1.47467,2528.1,2528.0,2.99005069]
[1751940526673,3.18697,2528.1,2528.0,3.66735069]
[1751940526874,3.18697,2528.1,2528.0,2.99005069]
[1751940527074,3.18697,2528.1,2528.0,3.66735069]
[1751940527276,3.18697,2528.1,2528.0,2.99005069]
[1751940527478,3.18697,2528.1,2528.0,3.66735069]
[1751940528573,2.3959,2528.1,2527.8,0.79115]
[1751940528775,1.3905,2528.1,2527.8,2.99010069]
[1751940528977,0.79113,2527.9,2527.8,2.99010069]
[1751940529178,1.49803,2527.9,2527.8,2.99010069]
[1751940529478,2.50343,2527.9,2527.8,3.66740069]
[1751940529674,2.50343,2527.9,2527.8,2.87625069]
[1751940529977,2.50343,2527.9,2527.8,3.66741069]
[1751940530278,1.7123,2527.9,2527.6,1.3162]
[1751940530474,1.0054,2527.8,2527.4,0.6545]
[1751940530676,0.693,2527.5,2527.4,4.32534069]
[1751940530877,1.48426,2527.5,2527.4,4.32534069]
[1751940531178,0.693,2527.5,2527.4,4.32534069]
[1751940531379,1.48426,2527.5,2527.4,4.32534069]
[1751940531674,2.48966,2527.5,2527.4,4.32534069]
[1751940531879,1.6984,2527.5,2527.4,4.32534069]
[1751940532986,2.48966,2527.5,2527.4,4.32534069]
[1751940533180,2.48966,2527.5,2527.4,0.6545]
[1751940533379,0.79132,2527.3,2527.2,0.79133]
[1751940533578,1.6888,2527.3,2527.2,0.79133]
[1751940533780,1.6888,2527.3,2527.2,1.47193]
[1751940534082,1.6888,2527.3,2527.2,2.76263]
[1751940534483,0.693,2527.3,2527.2,2.76263]
[1751940537879,2.48012,2527.3,2527.2,1.2907]
[1751940538284,2.48012,2527.3,2527.2,2.08205]
[1751940539485,0.79135,2527.2,2527.1,2.83935069]
[1751940539788,3.15215,2527.2,2527.1,2.19895069]
[1751940540088,3.15215,2527.2,2527.1,2.99033069]
[1751940540490,2.3608,2527.2,2527.1,3.67093069]
[1751940540680,2.3608,2527.2,2527.1,2.99033069]
[1751940540886,2.3608,2527.2,2527.1,3.67093069]
[1751940541186,3.15215,2527.2,2527.1,3.67093069]
[1751940541384,2.3608,2527.2,2527.1,3.67093069]
[1751940543790,1.365,2527.2,2527.1,3.67093069]
[1751940544089,0.693,2527.2,2527.1,3.67093069]
[1751940546285,1.6888,2527.2,2527.1,3.67093069]
[1751940548590,0.693,2527.2,2527.1,3.67093069]
[1751940548790,1.48435,2527.2,2527.1,3.67093069]
[1751940548989,0.693,2527.2,2527.1,3.67093069]
[1751940550494,1.48435,2527.2,2527.1,3.67093069]
[1751940551690,0.693,2527.2,2527.1,3.67093069]
[1751940552889,1.48435,2527.2,2527.1,3.67093069]
[1751940553295,2.48015,2527.2,2527.1,3.67093069]
[1751940554889,1.6888,2527.2,2527.1,3.67093069]
[1751940555296,0.693,2527.2,2527.1,3.67093069]
[1751940555498,1.48435,2527.2,2527.1,3.67093069]
[1751940555702,1.6943,2527.4,2527.1,3.67093069]
[1751940555703,1.6943,2527.4,2527.3,0.79132]
[1751940555900,2.3873,2527.4,2527.3,2.99027069]
[1751940556401,2.3873,2527.4,2527.3,3.67497069]
[1751940556602,0.693,2527.4,2527.3,3.67497069]
[1751940556795,0.693,2527.4,2527.3,5.02537069]
[1751940559705,0.79126,2527.5,2527.4,0.79126]
[1751940560001,0.693,2527.5,2527.4,4.38231069]
[1751940560502,0.693,2527.5,2527.4,5.06161069]
[1751940560905,0.79121,2527.7,2527.6,0.79123]
[1751940561104,1.46741,2527.7,2527.6,2.99018069]
[1751940561399,0.6762,2527.7,2527.6,2.99018069]
[1751940561603,1.46739,2527.7,2527.6,3.66408069]
[1751940561804,1.672,2527.7,2527.6,4.34338069]
[1751940562202,0.6762,2527.7,2527.6,4.34338069]
[1751940563001,0.6394,2527.9,2527.8,0.79116]
[1751940563204,1.3156,2527.9,2527.8,2.99011069]
[1751940563401,1.3156,2527.9,2527.8,3.66941069]
[1751940564304,0.6762,2527.9,2527.8,3.66941069]
[1751940564799,2.52153,2527.9,2527.8,3.66941069]
[1751940565503,1.7304,2527.9,2527.8,3.66941069]
[1751940565702,2.52153,2527.9,2527.8,3.66941069]
[1751940565894,1.7304,2527.9,2527.8,3.66941069]
[1751940566906,2.52153,2527.9,2527.8,3.66941069]
[1751940568602,1.7304,2527.9,2527.8,3.66941069]
[1751940569002,0.6762,2527.9,2527.8,3.66941069]
[1751940569906,1.0542,2528.3,2528.2,0.79104]
[1751940570202,2.52141,2528.3,2528.2,2.19895069]
[1751940570408,2.52141,2528.3,2528.2,2.87825069]
[1751940570606,2.52141,2528.3,2528.2,3.66929069]
[1751940570912,2.52141,2528.3,2528.2,2.87825069]
[1751940571305,2.52141,2528.3,2528.2,2.98999069]
[1751940571816,2.52141,2528.3,2528.2,2.87825069]
[1751940572113,2.52141,2528.3,2528.2,2.19895069]
[1751940572309,0.79107,2528.1,2528.0,4.28475069]
[1751940572508,1.7304,2528.1,2527.8,0.79113]
[1751940572810,0.79116,2527.9,2527.8,0.79115]
[1751940573005,1.46736,2527.9,2527.8,0.79115]
[1751940573203,2.52156,2527.9,2527.8,0.79115]
[1751940573712,0.79116,2527.8,2527.7,2.99012069]
[1751940573911,1.46736,2527.8,2527.7,2.99012069]
[1751940574110,2.52156,2527.8,2527.7,2.99012069]
[1751940575213,2.52156,2527.8,2527.7,3.66942069]
[1751940575409,2.52156,2527.8,2527.7,2.99012069]
[1751940577015,2.52156,2527.8,2527.7,3.66942069]
[1751940577210,1.7304,2527.8,2527.7,2.99012069]
[1751940577415,0.6762,2527.8,2527.7,4.97732069]
[1751940578515,1.46736,2527.8,2527.7,4.97732069]
[1751940579421,0.6762,2527.8,2527.7,4.97732069]
[1751940579915,2.52156,2527.8,2527.7,0.79117]
[1751940581010,1.7304,2527.8,2527.7,0.79117]
[1751940581207,1.7304,2527.8,2527.7,1.47047]
[1751940581407,1.7304,2527.8,2527.7,3.42577]
[1751940581608,2.52156,2527.8,2527.7,3.42577]
[1751940582117,1.7304,2527.8,2527.7,3.42577]
[1751940583219,0.6762,2527.8,2527.7,3.42577]
[1751940583414,1.0542,2528.3,2527.7,2.6346]
[1751940583621,1.84522,2528.3,2528.2,2.19895069]
[1751940583821,2.52142,2528.3,2528.2,2.19895069]
[1751940584415,2.52142,2528.3,2527.9,1.2926]
[1751940584623,0.79109,2528.1,2528.0,2.19895069]
[1751940584816,1.46729,2528.1,2528.0,2.19895069]
[1751940585017,2.52149,2528.1,2528.0,2.19895069]
[1751940585424,2.52149,2528.1,2528.0,2.99004069]
[1751940585620,2.52149,2528.1,2528.0,3.66934069]
[1751940585820,2.52149,2528.1,2528.0,2.99004069]
[1751940586019,2.52149,2528.1,2528.0,0.79109]
[1751940588223,0.79112,2528.0,2527.8,2.19895069]
[1751940588531,1.46735,2527.9,2527.8,3.66941069]
[1751940588723,2.52155,2527.9,2527.8,3.66941069]
[1751940589623,1.7304,2527.9,2527.8,3.66941069]
[1751940590019,0.6762,2527.9,2527.8,3.66941069]
[1751940590224,0.6762,2527.9,2527.8,5.08031069]
[1751940590622,0.6627,2528.0,2527.9,0.79113]
[1751940590827,1.3464,2528.0,2527.9,2.88593]
[1751940592923,0.9679,2528.4,2528.3,0.79098]
[1751940593123,2.3485,2528.4,2528.3,2.98993069]
[1751940593626,2.3485,2528.4,2528.3,3.67383069]
[1751940595027,1.3806,2528.4,2528.3,3.67383069]
[1751940595825,0.6837,2528.4,2528.3,3.67383069]
[1751940597824,0.6409,2528.6,2528.5,0.79094]
[1751940598023,0.6837,2528.6,2528.5,2.98989069]
[1751940598320,0.7908,2529.0,2528.5,3.67379069]
[1751940598526,0.7908,2529.0,2528.8,0.79085]
[1751940598527,1.52281389,2528.9,2528.8,0.79085]
[1751940598717,0.6837,2528.9,2528.8,3.67370069]
[1751940598923,0.6837,2528.9,2528.8,2.98980069]
[1751940599125,0.6837,2528.9,2528.8,3.67370069]
[1751940599325,1.6516,2528.9,2528.8,3.67370069]
[1751940599524,0.6837,2528.9,2528.8,3.67370069]
[1751940600325,2.44242,2528.9,2528.8,2.19895069]
[1751940600627,0.79085,2528.8,2528.7,1.3444]
[1751940600921,2.44245,2528.8,2528.7,1.3444]
[1751940601127,2.44245,2528.8,2528.7,2.0283]
[1751940601424,2.44245,2528.8,2528.7,1.3444]
[1751940601829,2.44245,2528.8,2528.7,2.0283]
[1751940602029,2.44245,2528.8,2528.7,1.3444]
[1751940602529,2.44245,2528.8,2528.7,2.0283]
[1751940602924,2.44245,2528.8,2528.7,2.81918]
[1751940604527,0.79088,2528.7,2528.6,2.19895069]
[1751940604724,2.44248,2528.7,2528.6,2.19895069]
[1751940604931,0.79094,2528.5,2528.4,3.64850069]
[1751940605121,1.47464,2528.5,2528.4,4.33240069]
[1751940605325,0.6837,2528.5,2528.4,4.33240069]
[1751940605725,2.44254,2528.5,2528.4,4.33243069]
[1751940606031,0.6837,2528.5,2528.4,4.33243069]
[1751940606418,1.47464,2528.5,2528.4,4.33243069]
[1751940606627,2.44254,2528.5,2528.4,4.33243069]
[1751940607128,1.6516,2528.5,2528.4,4.33243069]
[1751940608433,0.6837,2528.5,2528.4,4.33243069]
[1751940609527,0.79087,2528.8,2528.4,3.54145069]
[1751940609728,0.79087,2528.8,2528.7,2.98983069]
[1751940609923,1.47457,2528.8,2528.7,2.19895069]
[1751940610328,2.44247,2528.8,2528.7,2.19895069]
[1751940610924,2.44247,2528.8,2528.7,2.98983069]
[1751940610925,0.6837,2528.8,2528.7,2.98983069]
[1751940611129,0.6837,2528.8,2528.7,3.67373069]
[1751940611525,1.6516,2528.8,2528.7,2.19895069]
[1751940611742,1.6516,2528.8,2528.4,0.6586]
[1751940611928,1.7588,2528.7,2528.5,0.79092]
[1751940612235,1.6516,2528.6,2528.5,0.79092]
[1751940612435,1.6516,2528.6,2528.5,2.98987069]
[1751940613037,1.6516,2528.6,2528.5,5.01347069]
[1751940616745,1.6516,2528.6,2528.5,5.01349069]
[1751940617941,1.6516,2528.6,2528.2,6.94251028]
[1751940618142,1.48656,2528.5,2528.4,0.79098]
[1751940618442,3.13816,2528.5,2528.4,0.79098]
[1751940618635,0.79098,2528.4,2528.3,0.79099]
[1751940618843,1.47468,2528.4,2528.3,0.79099]
[1751940619034,1.6516,2528.4,2528.3,0.79099]
[1751940619447,1.6516,2528.4,2528.3,1.47029]
[1751940619647,2.44258,2528.4,2528.3,0.79099]
[1751940619846,1.6516,2528.4,2528.3,0.6793]
[1751940620049,1.6516,2528.4,2528.3,1.9877]
[1751940620248,1.6516,2528.4,2528.3,2.77871]
[1751940620547,0.79101,2528.3,2528.2,2.19895069]
[1751940620743,0.79104,2528.2,2528.1,0.6746]
[1751940620946,0.79113,2527.9,2527.8,0.6756]
[1751940621146,1.6223,2527.9,2527.8,2.14506]
[1751940621347,1.6223,2527.9,2527.8,7.51871959]
[1751940621545,1.6223,2527.9,2527.8,2.77516]
[1751940621745,2.41343,2527.9,2527.8,2.77516]
[1751940621944,1.6223,2527.9,2527.8,3.45346]
[1751940623850,2.41343,2527.9,2527.8,3.45346]
[1751940624044,1.6223,2527.9,2527.8,3.45346]
[1751940625149,0.6544,2527.9,2527.8,3.45346]
[1751940625345,0.79102,2528.3,2528.1,0.79104]
[1751940625547,1.44544,2528.2,2528.0,0.79108]
[1751940625752,1.44544,2528.2,2528.1,0.79107]
[1751940625941,0.79108,2528.1,2528.0,0.79109]
[1751940626146,0.79108,2528.1,2528.0,1.46939]
[1751940626350,0.79108,2528.1,2528.0,0.6783]
[1751940628853,1.6606,2528.1,2527.6,1.97806]
[1751940629053,0.79114,2527.9,2527.8,0.79113]
[1751940629553,0.79112,2528.0,2527.9,0.79111]
[1751940630050,0.79112,2528.0,2527.5,3.93874]
[1751940630051,1.6606,2528.1,2528.0,0.7911]
[1751940630350,1.6606,2528.1,2528.0,3.66835069]
[1751940630948,1.6606,2528.1,2528.0,4.94535069]
[1751940632051,1.6606,2528.1,2528.0,2.7464]
[1751940632748,2.45167,2528.1,2528.0,2.7464]
[1751940632948,1.6606,2528.1,2528.0,2.7464]
[1751940633253,2.45167,2528.1,2528.0,2.7464]
[1751940633454,2.45167,2528.1,2528.0,1.9553]
[1751940633654,2.45167,2528.1,2528.0,2.7464]
[1751940635052,1.6606,2528.1,2528.0,2.7464]
[1751940635254,0.6544,2528.1,2528.0,2.7464]
[1751940638364,1.45132,2528.3,2528.2,0.79104]
[1751940638654,2.10572,2528.3,2528.2,2.98999069]
[1751940638858,2.10572,2528.3,2528.2,2.19895069]
[1751940639059,2.10572,2528.3,2528.2,2.87725069]
[1751940639260,2.10572,2528.3,2528.2,3.66829069]
[1751940641765,1.3147,2528.3,2528.2,3.66829069]
[1751940642057,3.11191,2528.3,2528.2,3.66829069]
[1751940642259,3.11191,2528.3,2528.2,2.98999069]
[1751940642861,3.11191,2528.3,2528.2,3.66829069]
[1751940643061,2.3209,2528.3,2528.2,3.66829069]
[1751940643365,3.11191,2528.3,2528.2,3.66829069]
[1751940644167,2.3209,2528.3,2528.2,3.66829069]
[1751940644863,3.11191,2528.3,2528.2,3.66829069]
[1751940645370,2.3209,2528.3,2528.2,3.66829069]
[1751940645670,3.11191,2528.3,2528.2,3.66829069]
[1751940646067,2.3209,2528.3,2528.2,3.66829069]
[1751940646271,3.11191,2528.3,2528.2,3.66829069]
[1751940646771,2.3209,2528.3,2528.2,3.66829069]
[1751940647772,3.11191,2528.3,2528.2,3.66829069]
[1751940648870,3.11191,2528.3,2528.2,2.98999069]
[1751940649974,3.11191,2528.3,2528.2,3.66829069]
[1751940650275,3.11191,2528.3,2528.2,2.98999069]
[1751940650575,3.11191,2528.3,2528.2,3.65269069]
[1751940650766,3.11191,2528.3,2528.2,2.98999069]
[1751940651477,3.11191,2528.3,2528.2,3.65269069]
[1751940651770,3.11191,2528.3,2528.2,2.98999069]
[1751940651975,3.11191,2528.3,2528.2,3.65269069]
[1751940654181,1.45131,2528.3,2528.2,2.98999069]
[1751940654778,0.6603,2528.3,2528.2,2.98999069]
[1751940654980,0.79102,2528.3,2528.2,2.19895069]
[1751940655180,4.685,2528.4,2528.3,0.79101]
[1751940656175,0.79101,2528.3,2528.2,3.68327069]
[1751940656381,1.48971,2528.3,2528.2,1.48432]
[1751940656580,2.53621,2528.3,2528.2,2.14702]
[1751940656880,0.79104,2528.2,2528.1,0.79107]
[1751940657078,2.14324,2528.2,2528.1,0.79107]
[1751940657280,3.18974,2528.2,2528.1,0.79107]
[1751940658081,0.79107,2528.1,2528.0,1.48629]
[1751940658271,1.48977,2528.1,2528.0,1.48629]
[1751940658475,2.53627,2528.1,2528.0,2.14899]
[1751940659078,2.53627,2528.1,2528.0,0.79109]
[1751940659477,2.53627,2528.1,2528.0,1.45379]
[1751940660079,2.53627,2528.1,2528.0,0.79109]
[1751940660377,2.53627,2528.1,2528.0,1.45379]
[1751940661180,0.79113,2527.9,2527.8,9.06916028]
[1751940661382,1.48983,2527.9,2527.8,6.07905959]
[1751940661577,2.53633,2527.9,2527.8,6.07905959]
[1751940661785,2.53633,2527.9,2527.8,6.87021959]
[1751940662379,2.53633,2527.9,2527.8,1.3355]
[1751940662580,0.79116,2527.8,2527.7,6.20963959]
[1751940662778,3.17966,2527.8,2527.7,6.87233959]
[1751940663082,3.17966,2527.8,2527.7,1.46608]
[1751940664380,3.17966,2527.8,2527.7,1.46609]
[1751940664586,3.17966,2527.8,2527.7,0.6749]
[1751940664782,3.17966,2527.8,2527.7,0.79119]
[1751940665681,1.342,2527.8,2527.7,1.45389]
[1751940665885,0.79115,2527.9,2527.7,0.6627]
[1751940666080,0.79112,2528.0,2527.8,4.25365069]
[1751940666290,0.79112,2528.0,2527.9,0.79112]
[1751940666583,0.79113,2527.9,2527.8,5.70750069]
[1751940666788,2.53633,2527.9,2527.8,4.91635069]
[1751940666982,2.53633,2527.9,2527.8,5.70751069]
[1751940667181,2.53633,2527.9,2527.8,5.04481069]
[1751940667777,2.53633,2527.9,2527.8,5.70751069]
[1751940669284,1.7452,2527.9,2527.8,5.70751069]
[1751940669482,0.6607,2528.2,2528.1,0.79107]
[1751940669683,2.15044,2528.2,2528.1,2.99002069]
[1751940669882,0.6987,2528.2,2528.1,2.99002069]
[1751940670082,1.48974,2528.2,2528.1,2.99002069]
[1751940670284,1.48974,2528.2,2528.1,3.63012069]
[1751940670488,1.48974,2528.2,2528.1,2.83905069]
[1751940670786,1.48974,2528.2,2528.1,3.63012069]
[1751940670986,1.48974,2528.2,2528.1,4.92202069]
[1751940671388,1.48974,2528.2,2528.1,4.13095069]
[1751940672483,1.48974,2528.2,2528.1,4.92202069]
[1751940672684,1.48974,2528.2,2528.1,1.932]
[1751940672884,0.79107,2528.1,2528.0,0.7911]
[1751940673591,0.79107,2528.1,2528.0,1.4538]
[1751940673981,3.19236,2528.2,2528.1,0.79107]
[1751940674384,0.6561,2528.2,2528.1,0.79107]
[1751940674690,2.14584,2528.2,2528.1,2.99002069]
[1751940674889,2.14584,2528.2,2528.1,3.65272069]
[1751940675085,1.3548,2528.2,2528.1,4.32142069]
[1751940675285,2.14584,2528.2,2528.1,2.12247]
[1751940675691,0.6987,2528.2,2528.1,2.12247]
[1751940675990,0.6987,2528.2,2528.1,3.41377]
[1751940676390,1.48974,2528.2,2528.1,3.41377]
[1751940676691,0.6987,2528.2,2528.1,3.41377]
[1751940676886,1.0465,2528.3,2528.2,0.79104]
[1751940677096,2.53621,2528.3,2528.2,4.39639069]
[1751940677899,1.7452,2528.3,2528.2,4.39639069]
[1751940678194,1.7441,2528.5,2528.4,0.79098]
[1751940678394,3.23374,2528.5,2528.4,2.19895069]
[1751940678594,0.79098,2528.4,2528.3,2.19738]
[1751940678992,0.79098,2528.4,2528.3,1.4064]
[1751940679196,0.79098,2528.4,2528.3,2.19741]
[1751940679695,2.53618,2528.4,2528.3,2.19741]
[1751940679897,2.53618,2528.4,2528.3,2.86011]
[1751940680798,2.53618,2528.4,2528.3,2.0691]
[1751940680993,0.79104,2528.2,2528.1,0.6687]
[1751940681199,2.47984,2528.2,2528.1,1.45977]
[1751940681398,2.47984,2528.2,2527.9,4.74355959]
[1751940681399,0.79109,2528.1,2528.0,0.79107]
[1751940681695,1.6888,2528.1,2528.0,0.79107]
[1751940681900,1.6888,2528.1,2528.0,2.86057]
[1751940682296,2.47987,2528.1,2528.0,2.86057]
[1751940683698,2.47987,2528.1,2528.0,2.8606]
[1751940683899,2.47487,2528.1,2528.0,2.1884]
[1751940684307,1.6838,2528.1,2528.0,4.38735069]
[1751940684605,2.47487,2528.1,2528.0,4.38735069]
[1751940684806,2.47487,2528.1,2528.0,4.26845069]
[1751940685107,0.79121,2527.7,2527.6,0.7912]
[1751940685403,2.47501,2527.7,2527.6,2.1697]
[1751940685802,1.6838,2527.7,2527.6,2.1697]
[1751940686003,2.47499,2527.7,2527.6,3.5717]
[1751940686908,2.47499,2527.7,2527.6,3.57173]
[1751940688305,2.47499,2527.7,2527.5,0.79126]
[1751940688306,0.79126,2527.6,2527.5,0.79126]
[1751940688510,1.43356,2527.5,2527.4,2.99023069]
[1751940688809,2.47506,2527.5,2527.4,2.99023069]
[1751940689004,2.47506,2527.5,2527.4,3.66243069]
[1751940689205,2.47506,2527.5,2527.4,1.46349]
[1751940689606,2.47506,2527.5,2527.4,6.20704959]
[1751940690109,2.47506,2527.5,2527.4,7.61854959]
[1751940690311,1.6838,2527.5,2527.4,7.61854959]
[1751940690514,1.6838,2527.5,2527.4,2.87499]
[1751940690803,0.6423,2527.5,2527.4,2.87499]
[1751940691008,0.6423,2527.5,2527.4,7.61854959]
[1751940691409,0.6423,2527.5,2527.4,2.87499]
[1751940692506,2.47506,2527.5,2527.4,2.87499]
[1751940693309,1.6838,2527.5,2527.4,2.87499]
[1751940693509,2.47506,2527.5,2527.4,2.87499]
[1751940693704,1.6838,2527.5,2527.2,4.74355959]
[1751940693911,1.83281,2527.4,2527.3,0.79132]
[1751940694112,2.47511,2527.4,2527.3,0.79132]
[1751940694307,1.6838,2527.4,2527.1,2.0324]
[1751940694509,0.79135,2527.2,2527.1,2.82377]
[1751940694709,2.47515,2527.2,2527.1,3.49597]
[1751940695509,1.6838,2527.2,2527.1,3.49597]
[1751940695908,1.6838,2527.2,2527.1,5.69492069]
[1751940696111,2.47515,2527.2,2527.1,5.69492069]
[1751940696311,2.47515,2527.2,2527.1,4.90355069]
[1751940697009,2.47515,2527.2,2526.7,6.72231959]
[1751940697010,5.86121069,2527.2,2526.7,4.74355959]
[1751940697310,0.79143,2527.0,2526.9,0.79144]
[1751940697511,1.43371,2527.0,2526.9,0.6722]
[1751940697711,2.47521,2527.0,2526.9,0.6722]
[1751940698210,2.47521,2527.0,2526.9,1.46364]
[1751940698412,1.6838,2527.0,2526.9,1.46364]
[1751940698713,2.47521,2527.0,2526.9,1.46364]
[1751940700110,2.47521,2527.0,2526.9,2.81464]
[1751940700413,2.47521,2527.0,2526.9,2.0232]
[1751940701314,2.47521,2527.0,2526.9,2.81464]
[1751940701908,2.47521,2527.0,2526.9,2.0232]
[1751940702114,2.47521,2527.0,2526.9,2.81464]
[1751940704417,1.6838,2527.0,2526.9,2.81464]
[1751940704714,2.47521,2527.0,2526.9,2.81464]
[1751940705307,1.43371,2527.0,2526.9,2.81464]
[1751940705513,0.6423,2527.0,2526.9,2.81464]
[1751940705713,3.894,2527.2,2527.1,0.79138]
[1751940705917,4.5363,2527.2,2527.1,3.66253069]
[1751940706314,4.5363,2527.2,2527.1,4.32613069]
[1751940707611,0.6423,2527.2,2527.1,4.32613069]
[1751940708316,1.0415,2527.4,2527.3,0.79132]
[1751940708517,1.6838,2527.4,2527.3,0.79132]
[1751940708816,1.6838,2527.4,2527.3,3.66247069]
[1751940708817,0.6423,2527.4,2527.3,3.66247069]
[1751940709117,1.6838,2527.4,2527.3,3.66247069]
[1751940709814,0.6423,2527.4,2527.3,3.66247069]
[1751940710418,3.894,2527.6,2527.5,0.79126]
[1751940710615,5.72673,2527.6,2527.5,2.99021069]
[1751940710815,5.5974,2527.6,2527.5,3.63551069]
[1751940711012,5.5974,2527.6,2527.5,2.99021069]
[1751940711211,5.5974,2527.6,2527.5,3.65511069]
[1751940711413,5.5974,2527.6,2527.5,4.30041069]
[1751940711918,6.38863,2527.6,2527.5,4.30041069]
[1751940712512,6.38863,2527.6,2527.5,3.50915069]
[1751940713515,2.49463,2527.6,2527.5,2.10146]
[1751940714212,2.49463,2527.6,2527.5,1.3102]
[1751940714415,2.49463,2527.6,2527.5,2.10146]
[1751940714617,2.49463,2527.6,2527.5,1.3102]
[1751940715320,2.49463,2527.6,2527.5,2.10146]
[1751940715518,2.49463,2527.6,2527.5,1.3102]
[1751940715916,2.49463,2527.6,2527.5,2.10146]
[1751940718528,2.49463,2527.6,2527.5,1.3102]
[1751940718929,2.49463,2527.6,2527.5,2.10146]
[1751940719231,2.49463,2527.6,2527.5,1.3102]
[1751940719524,2.49463,2527.6,2527.5,0.79126]
[1751940719729,1.45313,2527.6,2527.5,1.43656]
[1751940719925,0.6619,2527.6,2527.5,2.99021069]
[1751940720131,0.663,2527.8,2527.5,4.82239069]
[1751940720428,2.51182,2528.0,2527.9,0.79113]
[1751940720630,0.6619,2528.0,2527.9,3.63538069]
[1751940720834,1.7207,2528.2,2528.1,0.79107]
[1751940721033,1.0419,2528.5,2528.4,0.79098]
[1751940721236,1.7038,2528.5,2528.4,3.63523069]
[1751940721537,0.6619,2528.5,2528.4,3.63523069]
[1751940724530,1.45284,2528.5,2528.4,3.63523069]
[1751940724735,1.45284,2528.5,2528.4,2.84425069]
[1751940724935,2.49474,2528.5,2528.4,0.6453]
[1751940725338,2.49474,2528.5,2528.4,1.43628]
[1751940725740,1.7038,2528.5,2528.4,1.43628]
[1751940725933,0.6619,2528.5,2528.4,3.63523069]
[1751940726129,1.0419,2528.9,2528.7,0.79086]
[1751940726336,0.6619,2528.8,2528.7,1.43616]
[1751940726530,0.6619,2528.8,2528.7,2.81816]
[1751940726838,2.49465,2528.8,2528.7,0.6453]
[1751940729140,0.79098,2528.4,2528.3,1.382]
[1751940729345,1.7038,2528.4,2528.3,2.17301]
[1751940730044,0.79089,2528.7,2528.6,0.79091]
[1751940730241,1.7038,2528.7,2528.6,0.79091]
[1751940730433,2.49468,2528.7,2528.6,0.6453]
[1751940730942,1.7038,2528.7,2528.6,1.43621]
[1751940731141,2.49468,2528.7,2528.6,0.6453]
[1751940731543,0.6619,2528.7,2528.6,1.43621]
[1751940731733,0.6619,2528.7,2528.6,2.80041]
[1751940734141,1.45278,2528.7,2528.6,2.80041]
[1751940734547,0.6619,2528.7,2528.6,2.80041]
[1751940734947,2.52102,2528.9,2528.8,0.79085]
[1751940735247,3.18292,2528.9,2528.8,2.19895069]
[1751940735450,3.18292,2528.9,2528.8,2.84425069]
[1751940735650,3.18292,2528.9,2528.8,3.63510069]
[1751940736151,3.18292,2528.9,2528.8,2.84425069]
[1751940736345,3.18292,2528.9,2528.8,3.63510069]
[1751940737043,2.3921,2528.9,2528.6,1.3642]
[1751940737249,0.79088,2528.7,2528.6,2.15509]
[1751940737544,2.49468,2528.7,2528.6,2.80039]
[1751940737748,2.49468,2528.7,2528.6,2.15509]
[1751940738049,2.49468,2528.7,2528.6,2.80039]
[1751940738750,2.49468,2528.7,2528.6,0.6453]
[1751940739145,0.79093,2528.6,2528.5,0.79094]
[1751940739347,2.49473,2528.6,2528.5,1.43624]
[1751940739547,2.49473,2528.6,2528.5,0.79094]
[1751940739750,2.49473,2528.6,2528.5,1.43624]
[1751940739951,1.7038,2528.6,2528.5,1.44904]
[1751940740252,2.49471,2528.6,2528.5,1.44904]
[1751940740451,2.49471,2528.6,2528.5,0.6581]